bitfinex-derivatives/quotes_SOLF0:USTF0_20240820
["timestamp","ask_amount","ask_price","bid_price","bid_amount"]
[1724151658816,0.0456857,146.26,146.24,10.47]
[1724151659017,0.0456857,146.26,146.24,13.8869]
[1724151659413,0.0456857,146.26,146.24,3.4169]
[1724151659609,0.0456857,146.26,146.24,13.8869]
[1724151659811,0.0456857,146.26,146.25,3.4169]
[1724151664727,0.0456857,146.26,146.24,13.8871]
[1724151665217,0.0456857,146.26,146.24,3.4171]
[1724151666924,3.4624857,146.26,146.24,3.4171]
[1724151667111,0.0456857,146.26,146.23,3.46230729]
[1724151668824,3.417,146.25,146.23,3.46230729]
[1724151672522,0.0456857,146.26,146.23,0.04490729]
[1724151673112,3.4171,146.25,146.23,0.04490729]
[1724151673519,3.4171,146.25,146.23,3.46230729]
[1724151674629,3.4171,146.25,146.23,0.04490729]
[1724151679134,3.4171,146.25,146.23,3.46230729]
[1724151684439,3.4172,146.24,146.23,0.04490729]
[1724151685936,10.47,146.24,146.15,40.72658171]
[1724151686125,10.47,146.22,146.16,11.7229]
[1724151687132,0.04368264,146.2,146.18,0.04795516]
[1724151688038,3.46178264,146.2,146.18,0.04795516]
[1724151690043,0.04368264,146.2,146.18,3.46645516]
[1724151690645,0.04368264,146.2,146.18,13.93645516]
[1724151691736,0.04368264,146.2,146.18,0.04795516]
[1724151692241,3.4183,146.19,146.18,0.04795516]
[1724151693938,3.46178264,146.2,146.18,0.04795516]
[1724151694442,3.46178264,146.2,146.18,3.46645516]
[1724151695833,3.46178264,146.2,146.18,0.04795516]
[1724151696437,3.4183,146.19,146.18,0.04795516]
[1724151699031,0.04368264,146.2,146.18,0.04795516]
[1724151700832,3.46188264,146.2,146.18,0.04795516]
[1724151708746,3.4183,146.19,146.18,0.04795516]
[1724151709147,10.51368264,146.2,146.13,2.6537]
[1724151709335,10.47,146.18,146.14,3.3814594]
[1724151709736,3.419,146.17,146.14,3.3814594]
[1724151709935,10.47,146.18,146.14,3.3814594]
[1724151710135,10.47,146.18,146.13,6.0734]
[1724151710346,0.04692592,146.17,146.15,0.04394323]
[1724151710548,0.05102536,146.17,146.15,3.40746973]
[1724151710845,3.46992536,146.17,146.15,3.40746973]
[1724151712451,3.46992536,146.17,146.15,0.05141344]
[1724151713054,3.419,146.16,146.15,0.05141344]
[1724151716552,10.47,146.16,146.11,3.35867856]
[1724151716854,10.47,146.16,146.08,10.47]
[1724151717240,3.4196,146.14,146.1,3.4203]
[1724151717441,0.04804557,146.13,146.11,0.04385157]
[1724151718055,3.46774557,146.13,146.11,0.04385157]
[1724151720656,0.04804557,146.13,146.11,3.46395157]
[1724151720854,0.04804557,146.13,146.11,13.93395157]
[1724151721049,0.04804557,146.13,146.12,1.2671]
[1724151722147,3.46774557,146.13,146.12,1.2671]
[1724151726159,3.42,146.12,146.11,0.04385157]
[1724151729860,13.89,146.12,146.11,0.04385157]
[1724151730054,3.42,146.12,146.11,0.04385157]
[1724151730256,13.89,146.12,146.11,0.04385157]
[1724151736555,3.4209,146.08,146.07,3.39526375]
[1724151738254,3.4209,146.08,146.06,1.33614996]
[1724151738859,3.4209,146.08,146.06,4.84144543]
[1724151739463,3.46475373,146.09,146.06,4.84144543]
[1724151740062,0.04395373,146.09,146.06,8.26264543]
[1724151740867,0.04395373,146.09,146.07,3.4211]
[1724151741566,0.04395373,146.09,146.06,8.26274543]
[1724151743668,3.46465373,146.09,146.06,4.84144543]
[1724151745072,3.46465373,146.09,146.06,8.26284543]
[1724151749670,0.04395373,146.09,146.07,3.421]
[1724151750575,0.04395373,146.09,146.06,8.26264543]
[1724151751678,3.46475373,146.09,146.06,8.26264543]
[1724151752578,3.421,146.08,146.06,3.55474543]
[1724151754675,3.46475373,146.09,146.06,3.55474543]
[1724151754874,3.46475373,146.09,146.06,6.97604543]
[1724151759675,3.46475373,146.09,146.06,3.55474543]
[1724151760276,0.04395373,146.09,146.06,3.55474543]
[1724151760476,45.28381174,146.17,146.07,10.47]
[1724151760477,3.40381174,146.17,146.07,10.47]
[1724151760686,3.40381174,146.17,146.07,11.7712]
[1724151760687,10.47,146.13,146.07,11.7712]
[1724151761184,3.42,146.12,146.08,3.4208]
[1724151761585,0.04729364,146.11,146.09,0.04880483]
[1724151762181,3.46749364,146.11,146.09,0.04880483]
[1724151763783,0.04729364,146.11,146.09,0.04880483]
[1724151767598,0.04729364,146.11,146.09,3.46940483]
[1724151769197,0.04729364,146.11,146.09,0.04880483]
[1724151778704,0.04729364,146.11,146.09,3.46950483]
[1724151779306,0.04729364,146.11,146.1,3.4204]
[1724151779697,4.72428894,146.18,146.1,10.47]
[1724151779698,1.3338,146.18,146.1,10.47]
[1724151779909,10.47,146.18,146.12,3.4199]
[1724151780289,3.4192,146.16,146.11,10.47]
[1724151780505,3.4192,146.16,146.12,1.3199]
[1724151780715,0.04971069,146.15,146.13,0.05198385]
[1724151781095,0.04971069,146.15,146.14,10.47]
[1724151781296,0.04971069,146.15,146.14,13.93675272]
[1724151781907,0.04971069,146.15,146.14,17.35625272]
[1724151786710,3.4184,146.19,146.16,3.419]
[1724151788104,0.0520351,146.19,146.16,3.47111265]
[1724151801311,0.0520351,146.19,146.16,0.05211265]
[1724151801916,3.4704351,146.19,146.16,0.05211265]
[1724151815523,3.4186,146.18,146.16,0.05211265]
[1724151823829,3.4704351,146.19,146.16,13.94101265]
[1724151824030,0.0520351,146.19,146.16,10.52211265]
[1724151824540,0.0520351,146.19,146.17,3.4188]
[1724151825437,3.4703351,146.19,146.16,13.94101265]
[1724151827738,0.0520351,146.19,146.18,10.47]
[1724151827940,72.40730565,146.23,146.18,10.47]
[1724151828141,72.40730565,146.23,146.2,10.47]
[1724151828334,75.82480565,146.23,146.2,13.8881]
[1724151828945,75.87347844,146.23,146.2,13.93290208]
[1724151830640,0.04867279,146.23,146.2,10.51480208]
[1724151831944,0.04867279,146.23,146.21,3.4179]
[1724151833631,0.04867279,146.23,146.22,3.47097972]
[1724151833838,0.04867279,146.23,146.21,3.4179]
[1724151834544,0.04867279,146.23,146.22,3.34180473]
[1724151844239,0.04867279,146.23,146.2,0.04480208]
[1724151844240,3.46607279,146.23,146.2,0.04480208]
[1724151844850,3.46607279,146.23,146.2,3.46280208]
[1724151846454,3.4178,146.22,146.2,0.04480208]
[1724151847952,10.51867279,146.23,146.2,0.04480208]
[1724151848255,3.4179,146.21,146.2,0.04480208]
[1724151850251,3.4184,146.19,146.14,16.61225272]
[1724151850453,3.4184,146.19,146.15,3.4191]
[1724151851054,3.4184,146.19,146.16,3.419]
[1724151851459,3.46323799,146.19,146.16,3.46874864]
[1724151851755,3.46323799,146.19,146.16,13.93874864]
[1724151861363,3.4186,146.18,146.16,0.04974864]
[1724151861757,10.47,146.17,146.16,0.04974864]
[1724151861958,0.04483799,146.19,146.1,1.2655]
[1724151862156,10.47,146.17,146.1,1.2655]
[1724151862470,3.4191,146.16,146.12,3.4198]
[1724151862971,0.04462165,146.15,146.13,0.04652791]
[1724151864259,3.4195,146.14,146.13,0.04652791]
[1724151866957,13.8895,146.14,146.13,0.04652791]
[1724151868061,3.4195,146.14,146.13,0.04652791]
[1724151868963,0.04462165,146.15,146.13,0.04652791]
[1724151869159,0.04462165,146.15,146.13,10.51652791]
[1724151869466,0.04462165,146.15,146.14,3.4195]
[1724151869657,0.04462165,146.15,146.14,6.89193328]
[1724151872473,0.04462165,146.15,146.14,8.19123328]
[1724151891571,3.4182,146.2,146.17,3.4186]
[1724151891773,3.36584461,146.24,146.17,10.47]
[1724151891774,10.47,146.24,146.17,10.47]
[1724151892087,3.418,146.21,146.18,3.4185]
[1724151892780,3.46255971,146.21,146.18,3.4664269]
[1724151893974,0.04455971,146.21,146.19,3.4183]
[1724151895886,0.04455971,146.21,146.19,3.4184]
[1724151896080,0.04455971,146.21,146.18,10.5179269]
[1724151897881,0.04455971,146.21,146.2,3.4181]
[1724151898387,2.7221,146.28,146.2,10.47]
[1724151898576,57.49728984,146.29,146.22,10.47]
[1724151898781,57.49728984,146.29,146.22,13.89326357]
[1724151899078,57.49728984,146.29,146.22,3.42326357]
[1724151899388,3.4166,146.27,146.24,3.4171]
[1724151899578,3.46012832,146.27,146.24,3.46110056]
[1724151899781,3.4168,146.26,146.24,0.04400056]
[1724151900184,3.417,146.25,146.24,0.04400056]
[1724151900485,13.887,146.25,146.24,0.04400056]
[1724151904091,3.4174,146.24,146.2,3.4179]
[1724151904275,10.47,146.25,146.19,4.717]
[1724151904782,3.4175,146.23,146.19,4.717]
[1724151904984,3.4175,146.23,146.2,3.4181]
[1724151905191,0.04887867,146.22,146.2,3.46170058]
[1724151905782,0.04887867,146.22,146.2,0.04360058]
[1724151906892,3.46657867,146.22,146.2,0.04360058]
[1724151907482,0.04887867,146.22,146.2,0.04360058]
[1724151908191,0.04887867,146.22,146.2,3.46170058]
[1724151908399,3.46657867,146.22,146.2,0.04360058]
[1724151909388,10.51887867,146.22,146.2,0.04360058]
[1724151909888,13.93667867,146.22,146.2,0.04360058]
[1724151911284,3.46667867,146.22,146.2,0.04360058]
[1724151913394,0.04887867,146.22,146.2,0.04360058]
[1724151915901,0.04887867,146.22,146.2,3.46170058]
[1724151920003,3.46657867,146.22,146.2,0.04360058]
[1724151920394,10.51887867,146.22,146.2,0.04360058]
[1724151920592,10.51887867,146.22,146.16,1.3023]
[1724151920901,10.47,146.2,146.14,3.47243328]
[1724151921102,3.4185,146.19,146.15,3.4193]
[1724151921405,3.4185,146.19,146.15,6.79846427]
[1724151922303,0.04586164,146.18,146.16,0.04989479]
[1724151923095,3.46456164,146.18,146.16,0.04989479]
[1724151923997,3.4188,146.17,146.16,0.04989479]
[1724151937428,52.35,146.17,146.09,40.74574576]
[1724151937613,10.47,146.12,146.08,44.16667269]
[1724151937812,10.47,146.12,146.08,47.55759177]
[1724151938021,10.47,146.12,146.08,6.81181908]
[1724151938415,13.8902,146.12,146.08,3.39091908]
[1724151938719,0.05114007,146.11,146.09,0.04621486]
[1724151939113,3.47154007,146.11,146.09,0.04621486]
[1724151944327,0.05114007,146.11,146.09,0.04621486]
[1724151944719,3.47154007,146.11,146.09,0.04621486]
[1724151947727,3.4205,146.1,146.09,0.04621486]
[1724151947925,13.8905,146.1,146.09,0.04621486]
[1724151948122,10.47,146.1,146.07,3.47745244]
[1724151948422,10.47,146.08,146.04,2.65329752]
[1724151948830,3.4213,146.07,146.04,2.65329752]
[1724151949032,3.4213,146.07,146.04,6.14866687]
[1724151949332,0.04562797,146.07,146.04,6.19260732]
[1724151949528,1.3834,146.15,146.06,10.47]
[1724151949717,10.47,146.13,146.06,10.47]
[1724151950119,3.4204,146.11,146.07,3.4212]
[1724151950431,0.05164279,146.1,146.08,0.04946884]
[1724151953932,3.47214279,146.1,146.08,0.04946884]
[1724151955031,0.05164279,146.1,146.08,0.04946884]
[1724151957339,10.47,146.16,146.09,10.47]
[1724151957643,10.47,146.16,146.1,1.3479]
[1724151958342,1.3138,146.19,146.11,10.47]
[1724151958639,0.05223544,146.14,146.12,3.48581115]
[1724151958845,0.04405444,146.14,146.12,3.48581115]
[1724151959433,0.04405444,146.14,146.12,3.47123527]
[1724151959728,0.04405444,146.14,146.12,0.05133527]
[1724151961842,0.04405444,146.14,146.12,3.47133527]
[1724151962536,0.04405444,146.14,146.12,0.05133527]
[1724151963845,3.46355444,146.14,146.12,0.05133527]
[1724151965836,0.04405444,146.14,146.12,0.05133527]
[1724151967832,0.04405444,146.14,146.12,3.47123527]
[1724151968649,0.04405444,146.14,146.13,3.4198]
[1724151971242,0.04405444,146.14,146.12,0.05133527]
[1724151972549,0.04405444,146.14,146.12,3.47113527]
[1724151974150,0.04405444,146.14,146.13,3.4198]
[1724151976154,0.04405444,146.14,146.12,3.47123527]
[1724151977649,0.04405444,146.14,146.13,3.4198]
[1724151987550,0.04405444,146.14,146.13,13.8898]
[1724151988150,3.4189,146.17,146.14,3.4193]
[1724151989349,3.4685493,146.17,146.14,3.4193]
[1724151991963,0.0496493,146.17,146.15,3.4193]
[1724151995861,0.0496493,146.17,146.16,3.4191]
[1724151996360,0.0496493,146.17,146.16,13.8891]
[1724151997964,2.6506,146.3,146.16,53.7118]
[1724151998264,2.6506,146.3,146.19,10.47]
[1724151998455,3.4169,146.26,146.22,3.4175]
[1724151998855,10.47,146.27,146.23,3.46241556]
[1724151998856,0.04762841,146.25,146.23,3.46241556]
[1724152002864,0.04762841,146.25,146.24,3.4172]
[1724152015983,3.4162,146.29,146.25,3.4167]
[1724152016782,3.4162,146.29,146.26,3.4167]
[1724152017080,10.47,146.31,146.26,0.0444037]
[1724152017576,10.47,146.32,146.26,0.0444037]
[1724152017980,3.4157,146.31,146.28,3.4161]
[1724152018175,3.4157,146.31,146.28,3.46840345]
[1724152021383,3.4156,146.31,146.28,0.05230345]
[1724152021577,10.47,146.3,146.28,0.05230345]
[1724152021775,10.47,146.29,146.17,40.72072138]
[1724152021979,10.47,146.23,146.14,3.9482]
[1724152022183,10.47,146.23,146.15,10.47]
[1724152022578,3.4179,146.22,146.17,3.4187]
[1724152022779,3.4179,146.22,146.16,10.47]
[1724152023086,3.4179,146.22,146.17,3.47080635]
[1724152023087,0.04903076,146.2,146.17,3.47080635]
[1724152027189,3.46723076,146.2,146.17,0.05210635]
[1724152028585,0.04903076,146.2,146.17,3.47090635]
[1724152031189,3.46713076,146.2,146.17,3.47090635]
[1724152034191,0.04903076,146.2,146.18,3.4185]
[1724152039398,0.04903076,146.2,146.17,0.05210635]
[1724152039607,0.04903076,146.2,146.17,10.52210635]
[1724152039990,0.04903076,146.2,146.17,13.94070635]
[1724152040301,0.04903076,146.2,146.17,10.52210635]
[1724152041203,0.04903076,146.2,146.18,10.47]
[1724152041400,0.04903076,146.2,146.18,13.8886]
[1724152043507,0.04903076,146.2,146.19,3.4184]
[1724152050308,0.04903076,146.2,146.19,13.8884]
[1724152050505,3.4173,146.24,146.21,3.4177]
[1724152050817,3.4173,146.24,146.22,3.47780812]
[1724152051516,3.4173,146.24,146.22,3.525819]
[1724152054012,3.4173,146.24,146.22,0.04801088]
[1724152056411,3.417,146.25,146.22,6.96379254]
[1724152057118,3.417,146.25,146.22,3.54619254]
[1724152058117,3.4172,146.24,146.22,3.54619254]
[1724152064515,3.4174,146.23,146.22,0.04801088]
[1724152064919,13.8874,146.23,146.22,0.04801088]
[1724152065222,3.4178,146.22,146.18,3.4185]
[1724152066024,0.04758507,146.21,146.19,0.0452564]
[1724152066325,3.46548507,146.21,146.19,0.0452564]
[1724152067828,3.4181,146.2,146.19,0.0452564]
[1724152068324,3.46558507,146.21,146.19,0.0452564]
[1724152074732,3.4181,146.2,146.19,0.0452564]
[1724152075333,3.4187,146.18,146.14,3.4195]
[1724152075828,3.4187,146.18,146.15,3.4193]
[1724152076533,3.4707764,146.18,146.15,3.47097955]
[1724152079531,3.4707764,146.18,146.15,13.94097955]
[1724152083141,3.4189,146.17,146.15,10.52167955]
[1724152084235,3.4189,146.17,146.15,0.05167955]
[1724152084536,10.47,146.16,146.11,1.311]
[1724152085042,10.47,146.16,146.1,3.44084319]
[1724152085439,3.42,146.13,146.1,3.44084319]
[1724152085644,3.46370627,146.13,146.1,3.49267297]
[1724152085845,0.04370627,146.13,146.1,3.49267297]
[1724152086744,3.42,146.12,146.1,3.49267297]
[1724152087843,13.8902,146.11,146.1,0.05182978]
[1724152090342,3.4212,146.07,146.04,43.4105352]
[1724152090750,3.4212,146.07,146.04,2.65329752]
[1724152091351,3.46682163,146.07,146.04,2.69951193]
[1724152092360,3.4214,146.06,146.04,2.69951193]
[1724152094955,10.51562163,146.07,146.04,2.69951193]
[1724152094956,3.4216,146.05,146.04,2.69951193]
[1724152097953,13.8916,146.05,146.04,2.69951193]
[1724152098655,0.04562163,146.07,146.0,2.79832963]
[1724152098957,10.47,146.02,146.0,2.79832963]
[1724152099457,10.51819761,146.02,146.0,2.79832963]
[1724152099662,10.51819761,146.02,146.0,2.84763433]
[1724152100751,0.04819761,146.02,146.0,2.84763433]
[1724152101762,41.88,146.09,146.0,2.79832963]
[1724152102061,10.47,146.06,146.0,2.79832963]
[1724152102570,3.4218,146.05,146.01,3.4226]
[1724152102751,0.0451973,146.04,146.02,0.04577516]
[1724152103762,56.95845989,146.14,146.03,10.47]
[1724152103763,10.47,146.09,146.03,10.47]
[1724152104061,10.47,146.06,146.01,1.3198]
[1724152104762,0.04496513,146.05,146.02,3.4730534]
[1724152108259,10.47,146.04,146.02,0.0509534]
[1724152108463,10.47,146.03,146.02,0.0509534]
[1724152109766,13.8921,146.03,146.02,0.0509534]
[1724152111579,0.04496513,146.05,146.02,3.4732534]
[1724152112165,0.04496513,146.05,146.02,0.0509534]
[1724152112765,0.04496513,146.05,146.03,3.4913313]
[1724152112958,0.04496513,146.05,146.02,0.0509534]
[1724152113360,0.04496513,146.05,146.03,3.4219]
[1724152113768,0.04496513,146.05,146.03,3.45438237]
[1724152113974,0.04496513,146.05,146.03,1.2877]
[1724152114376,0.04496513,146.05,146.03,4.78334998]
[1724152114664,0.04496513,146.05,146.03,8.20534998]
[1724152114873,0.04496513,146.05,146.03,1.2877]
[1724152115471,0.04496513,146.05,146.03,4.697139]
[1724152115968,0.04496513,146.05,146.04,3.4219]
[1724152118473,0.04496513,146.05,146.03,1.2877]
[1724152121669,0.04496513,146.05,146.03,4.7098]
[1724152122367,0.04496513,146.05,146.03,3.4221]
[1724152124678,3.46676513,146.05,146.02,0.0509534]
[1724152126778,3.4219,146.04,146.02,0.0509534]
[1724152126974,26.27,146.04,146.02,0.0509534]
[1724152127576,3.4221,146.03,146.02,0.0509534]
[1724152131881,26.27,146.04,146.0,2.79832963]
[1724152131882,3.4226,146.01,146.0,2.79832963]
[1724152132087,29.6926,146.01,145.98,1.3674]
[1724152132281,26.27,146.01,145.98,1.3674]
[1724152132982,26.316387,146.01,145.98,1.41576575]
[1724152134081,26.316387,146.01,145.98,4.83906575]
[1724152134487,10.52,146.0,145.98,4.83906575]
[1724152135581,10.52,146.0,145.99,3.423]
[1724152136686,10.52,146.0,145.98,1.41576575]
[1724152136687,10.52,146.0,145.98,4.83896575]
[1724152139486,10.52,146.0,145.99,3.423]
[1724152139682,10.566387,146.01,145.99,3.423]
[1724152141287,10.566387,146.01,145.98,0.04836575]
[1724152141288,10.566387,146.01,145.98,3.47156575]
[1724152141478,10.52,145.99,145.98,0.04836575]
[1724152141887,10.52,145.99,145.96,2.9711755]
[1724152142083,42.08,146.0,145.96,2.9711755]
[1724152142084,10.52,145.97,145.96,2.9711755]
[1724152142492,3.4232,145.99,145.96,2.9711755]
[1724152142793,10.52,145.97,145.96,2.9711755]
[1724152143093,0.0521163,145.98,145.96,2.9711755]
[1724152143393,0.0522054,145.98,145.96,3.01842149]
[1724152143985,0.0522054,145.98,145.96,4.35732149]
[1724152144879,0.0522054,145.98,145.97,3.4235]
[1724152150895,0.0522054,145.98,145.96,7.78102149]
[1724152151098,0.0522054,145.98,145.96,4.35732149]
[1724152152294,0.0522054,145.98,145.97,3.4235]
[1724152154099,10.52,146.03,145.97,10.52]
[1724152154608,10.52,146.03,146.01,3.4225]
[1724152155207,10.56537887,146.03,146.01,3.47101993]
[1724152157308,10.52,146.02,146.01,3.47101993]
[1724152159321,10.52,146.02,146.01,0.04851993]
[1724152160316,10.52,146.02,146.01,3.47111993]
[1724152160615,10.52,146.02,146.01,0.04851993]
[1724152164220,10.52,146.02,145.97,3.4233]
[1724152164521,10.52,146.0,145.96,4.3100755]
[1724152164711,10.52,146.0,145.98,3.4231]
[1724152165319,10.56590805,146.0,145.98,3.47510735]
[1724152165914,0.04590805,146.0,145.99,3.423]
[1724152166320,1.3732,146.07,146.02,3.4222]
[1724152166517,10.52,146.05,145.99,3.34285372]
[1724152166725,10.52,146.03,145.97,10.52]
[1724152167321,1.3732,146.07,146.01,3.4225]
[1724152167322,10.52,146.02,146.01,3.4225]
[1724152167829,10.52,146.02,146.0,0.04538899]
[1724152168527,10.52,146.02,146.0,3.46818899]
[1724152169226,10.52,146.02,146.0,0.04538899]
[1724152171627,10.52,146.02,146.0,3.46808899]
[1724152172928,0.05073324,146.03,146.0,3.46808899]
[1724152173227,10.52,146.01,146.0,3.46808899]
[1724152178921,10.52,146.01,146.0,0.04538899]
[1724152179629,10.52,146.01,146.0,3.46818899]
[1724152183027,10.52,146.01,146.0,0.04538899]
[1724152192343,3.4224,146.02,146.0,0.04538899]
[1724152192839,10.52,146.01,146.0,0.04538899]
[1724152193339,3.4224,146.02,146.0,0.04538899]
[1724152193532,10.52,146.01,146.0,0.04538899]
[1724152194037,13.9426,146.01,146.0,0.04538899]
[1724152194239,52.6,146.01,145.96,2.9711755]
[1724152194550,52.6,146.01,145.84,246.54647911]
[1724152194551,10.52,145.98,145.92,3.00799634]
[1724152194844,10.52,145.93,145.92,3.00799634]
[1724152195930,0.05237429,145.94,145.92,3.00799634]
[1724152196327,10.52,145.93,145.91,0.04444649]
[1724152196638,52.6,145.93,145.88,3.05857705]
[1724152196939,10.52,145.89,145.88,3.05857705]
[1724152199736,0.05034303,145.9,145.88,3.05857705]
[1724152199941,3.42732632,145.98,145.88,4.31827705]
[1724152200129,10.52,145.93,145.88,5.56617705]
[1724152200339,10.52,145.92,145.88,5.56617705]
[1724152200541,3.48759302,145.96,145.88,5.56617705]
[1724152200542,10.52,145.9,145.88,3.05857705]
[1724152202242,0.4595,145.98,145.88,3.05857705]
[1724152202541,10.52,145.93,145.88,3.05857705]
[1724152203045,0.04654617,145.9,145.88,3.05857705]
[1724152204143,0.04654617,145.9,145.88,3.10902909]
[1724152204345,10.56835806,145.9,145.88,3.10902909]
[1724152205137,3.4254,145.89,145.88,3.10902909]
[1724152205434,3.4254,145.89,145.81,3.13881789]
[1724152205435,10.52,145.89,145.81,3.13881789]
[1724152205638,10.52,145.87,145.82,2.753]
[1724152205844,10.52,145.87,145.82,6.18]
[1724152206240,10.52,145.86,145.81,3.13881789]
[1724152206750,13.99134472,145.86,145.83,0.04872238]
[1724152207644,0.04504472,145.86,145.83,0.04872238]
[1724152208050,0.04504472,145.86,145.83,3.47532238]
[1724152208644,0.04504472,145.86,145.83,0.04872238]
[1724152209355,13.9464,145.85,145.83,0.04872238]
[1724152210438,0.04504472,145.86,145.83,0.04872238]
[1724152210439,13.9466,145.84,145.83,0.04872238]
[1724152210945,3.4266,145.84,145.83,0.04872238]
[1724152211158,0.04504472,145.86,145.83,0.04872238]
[1724152211547,0.04504472,145.86,145.83,3.47542238]
[1724152211744,0.04504472,145.86,145.83,0.04872238]
[1724152211950,0.04504472,145.86,145.84,2.5764]
[1724152213249,3.47114472,145.86,145.84,2.5764]
[1724152216945,3.4263,145.85,145.84,2.5764]
[1724152217149,0.04504472,145.86,145.84,2.5764]
[1724152219744,0.04504472,145.86,145.83,3.47552238]
[1724152220950,42.08,146.0,145.83,10.56872238]
[1724152221149,10.52,145.91,145.85,10.52]
[1724152221349,10.52,145.91,145.85,3.40041259]
[1724152221555,10.52,145.91,145.83,1.2978]
[1724152221556,10.52,145.91,145.86,3.426]
[1724152221950,10.52,145.91,145.85,3.40794851]
[1724152222146,10.52,145.91,145.87,0.05263313]
[1724152222351,0.04718188,145.9,145.87,0.05263313]
[1724152223659,0.04718188,145.9,145.88,3.4256]
[1724152225357,0.04718188,145.9,145.87,0.05263313]
[1724152225358,0.04718188,145.9,145.89,3.4254]
[1724152228259,10.52,145.96,145.92,3.4246]
[1724152228954,3.4241,145.95,145.92,3.4246]
[1724152229363,10.52,145.96,145.93,3.4243]
[1724152229566,13.9439,145.96,145.89,11.8781]
[1724152229861,0.0470645,145.95,145.92,0.04983092]
[1724152231349,0.0470645,145.95,145.92,10.56983092]
[1724152231862,0.0470645,145.95,145.94,3.4242]
[1724152233267,62.58028049,145.99,145.93,3.46085728]
[1724152233459,62.58028049,145.99,145.94,1.3114]
[1724152234066,62.58028049,145.99,145.96,3.4237]
[1724152234267,62.62996565,145.99,145.96,3.46821973]
[1724152234755,3.4233,145.98,145.96,0.04451973]
[1724152237176,13.9435,145.97,145.96,0.04451973]
[1724152238462,3.424,145.96,145.9,2.5052]
[1724152238663,10.52,145.94,145.9,2.5052]
[1724152238867,10.52,145.94,145.92,3.4246]
[1724152239463,10.52,145.94,145.92,3.46911882]
[1724152239773,10.56993285,145.94,145.92,3.46911882]
[1724152240275,0.04993285,145.94,145.93,3.4245]
[1724152240667,10.52,145.97,145.92,10.56451882]
[1724152241672,3.4231,145.99,145.92,10.56451882]
[1724152241972,0.05274207,145.96,145.94,0.05102525]
[1724152242177,0.05274207,145.96,145.95,3.424]
[1724152244776,13.9429,146.0,145.97,3.4235]
[1724152245276,10.52,146.0,145.98,3.4232]
[1724152245978,10.56757793,146.0,145.98,3.47468283]
[1724152247385,0.04757793,146.0,145.98,0.05148283]
[1724152248987,0.04757793,146.0,145.99,3.423]
[1724152249175,0.04757793,146.0,145.98,0.05148283]
[1724152250681,0.04757793,146.0,145.86,81.59415644]
[1724152250891,10.52,145.95,145.89,2.7006]
[1724152251187,10.52,145.95,145.91,3.4248]
[1724152251681,10.52,145.95,145.92,3.4247]
[1724152251983,13.9441,145.95,145.92,3.4247]
[1724152252385,0.04644811,145.93,145.92,3.4247]
[1724152252688,0.04644811,145.93,145.91,3.46854965]
[1724152253484,3.4238,145.96,145.92,3.4247]
[1724152253787,10.52,145.96,145.92,3.4247]
[1724152254584,3.47525076,145.95,145.93,0.04840794]
[1724152257273,0.05115076,145.95,145.93,3.47280794]
[1724152259187,0.05115076,145.95,145.93,0.04840794]
[1724152259783,3.4242,145.94,145.93,0.04840794]
[1724152259990,0.05115076,145.95,145.93,0.04840794]
[1724152260785,10.57115076,145.95,145.93,0.04840794]
[1724152261391,10.57115076,145.95,145.89,3.4252]
[1724152261593,10.52,145.93,145.89,3.4252]
[1724152261897,13.9447,145.93,145.89,3.4252]
[1724152262581,0.05132069,145.92,145.9,0.04523781]
[1724152263291,0.05132069,145.92,145.9,3.47033781]
[1724152264086,0.05132069,145.92,145.9,0.04523781]
[1724152264383,10.52,145.91,145.9,0.04523781]
[1724152264578,13.9449,145.91,145.9,0.04523781]
[1724152265590,3.4254,145.89,145.86,3.4259]
[1724152265780,13.9454,145.89,145.85,3.4262]
[1724152266175,3.426,145.87,145.83,3.4267]
[1724152266588,3.426,145.87,145.81,13.65881789]
[1724152266895,10.56976011,145.86,145.84,0.04472936]
[1724152267190,13.9463,145.86,145.84,0.04472936]
[1724152267392,13.99635327,145.86,145.84,0.04472936]
[1724152267691,10.57005327,145.86,145.84,0.04472936]
[1724152268300,3.4263,145.85,145.84,0.04472936]
[1724152268792,3.4263,145.85,145.81,3.13881789]
[1724152268793,3.4267,145.84,145.81,3.13881789]